Workbook

Sheet דוגמאות מרצה שאלות 1-5
I1: ערך עתידי של סכום סדרתי (FV)
G3: שאלה 1 | I3: אופיר ושושי מתכננים לצאת לטיול בעוד 3 שנים מהיום. | ED3: 3 | EE3: N | EG3: 3 | EH3: N
I4: לשם כך, הם מפרישים בסוף כל שנה, ממשכורתם 500 ₪ לטובת הטיול הזה. בהנחה והריבית | ED4: 0 | EE4: PV | EG4: 0 | EH4: PV
I5: השנתית היא 4%.
I6: א. מהו שווי ההפקדות של 500 ש"ח בסוף כל שנה בתום ה-3 שנים? | ED6: 100 | EE6: PMT | EG6: 100 | EH6: PMT
I7: ב. מהו שווי ההפקדות של 500 ש"ח בתחילת כל שנה בתום ה-3 שנים? | ED7: 5.00% | EE7: R | EG7: 5.00% | EH7: R
ED9: =FV(ED7,ED3,-ED6,ED4,1) -> ₪ 331.01 | EG9: =FV(EG7,EG3,-EG6,EG4) -> ₪ 315.25
I11: סעיף א'
I12: נתונים
I13: 500 | J13: PMT | K13: הפקדה בסוף כל שנה
I14: 4.00% | J14: r | K14: ריבית שנתית
I15: 3 | J15: n | K15: מספר שנים
J16: Type | K16: תחילת / סוף שנה
J18: =FV(I14,I15,-I13,,) -> ₪ 1,560.80 | K18: סכום הכסף שיצטבר (FV)
I20: סעיף ב'
I21: נתונים
I22: 500 | J22: PMT | K22: הפקדה בסוף כל שנה
I23: 4.00% | J23: r | K23: ריבית שנתית
I24: 3 | J24: n | K24: מספר שנים
I25: 1 | J25: Type | K25: תחילת / סוף שנה
J27: =FV(I23,I24,-I22,,1) -> ₪ 1,623.23 | K27: סכום הכסף שיצטבר (FV)
G31: שאלה 2 | I31: ליעד הפקיד היום סכום חד- פעמי של 50,000 ש"ח בתכנית חסכון ל- 10 שנים. בנוסף,
I32: הוא יפקיד בתכנית זו עוד 2,000 ש"ח בסוף כל שנה. מהו הסכום שיעמוד לרשותו בתום תקופת החסכון,
I33: אם הריבית על החסכון היא בשיעור של 4.5% לשנה?
I38: נתונים
I40: 5% | J40: r | K40: ריבית שנתית
I41: 10 | J41: n | K41: מספר שנים
I42: 50000 | J42: PV | K42: סכום הפקדה חד-פעמי
I43: 2000 | J43: PMT | K43: סכום הפקדה שנתי
J44: Type | K44: תחילת / סוף שנה
J47: =FV(I40,I41,I43,I42) -> ₪ -102,224.89 | K47: סכום הכסף שיצטבר (FV)
G59: שאלה 3 | I59: יהל חוסך בכל סוף שנה, סכום של 6,500 ₪. וזאת למשך 20 שנים. במהלך 8 השנים הראשונות,
I60: עמד שיעור הריבית על הפקדות על 3% לשנה. במהלך 12 השנים שלאחר מכן, עמד שיעור הריבית על 4% לשנה
I61: כמה כסף יצטבר ליהל בתום תקופת החיסכון?
I65: נתונים
I67: 3% | J67: r | K67: ריבית שנתית (8 שנים ראשונות)
I68: 4% | J68: r | K68: ריבית שנתית (12 שנים הבאות)
I69: -6500 | J69: PMT | K69: סכום הפקדה חודשי
I70: 8 | J70: n | K70: מספר הפקדות (שנים 1-8)
I71: 12 | J71: n | K71: מספר הפקדות (שנים 9-20)
J72: Type | K72: תחילת / סוף שנה
I74: סדרת הפקדות ראשונה = 8 הפקדות ראשונות בלבד | N74: =FV(I68,I71,-I69,J76) -> ₪ -190,207.69
J76: =FV(I67,I70,I69,,) -> ₪ 57,800.18 | K76: סכום הכסף שיצטבר לאחר 8 שנים (FV)
J77: =FV(I68,I71,0,-J76) -> ₪ 92,539.96 | K77: סכום הכסף שיצטבר לאחר 20 שנים (FV)
I79: סדרת הפקדות שנייה
J81: =FV(I68,I71,I69,,) -> ₪ 97,667.74 | K81: סכום הכסף שיצטבר לאחר 20 שנים (FV)
J84: =J77+J81 -> ₪ 190,207.69 | K84: סכום הכסף שיצטבר משתי סדרות ההפקדות
G91: שאלה 4 | I91: התאריך היום הוא 1.4.2020. בעוד 4 חודשים בדיוק מהיום, בתאריך 1.8.2020, אופיר ושושי מוזמנים לאירוע
I92: משפחתי. עלות המתנה שעל הזוג להעניק כמתנה לאירוע: 2,000 ש"ח. הריבית החודשית בבנק: 0.8%.
I93: מה הסכום שעל הזוג להפקיד בכל תחילת חודש, על מנת לממן את המתנה?
I97: נתונים
I99: 0.80% | J99: r | K99: ריבית חודשית
I100: 4 | J100: n | K100: מספר חודשים
I101: 2000 | J101: FV | K101: מחיר לכרטיס בודד
I102: 0
I103: 1 | J103: Type | K103: תחילת / סוף שנה
J105: =PMT(I99,I100,I102,I101,I103) -> ₪ -490.12 | K105: סכום הפקדה חודשי (PMT)
G121: שאלה 5 | I121: בנק: "מאגדים" הציע לחברת: "שושנת החוחים" להקים קרן מיוחדת, שבתום 6 שנים יצטבר בה סכום
I122: של 50,000 ש"ח. אם היא תהיה מוכנה לשלם לבנק סכום של 6,150 ש"ח בתום כל אחת מ- 6 השנים
I123: הבאות. מהו שער הריבית השנתי שמוכן הבנק לשלם לחברה?
I128: נתונים
I130: 6 | J130: n | K130: מספר שנים
I131: 50000 | J131: FV | K131: סכום שיצטבר
I132: -6150 | J132: PMT | K132: סכום הפקדה שנתי
J133: Type | K133: תחילת / סוף שנה
J135: =RATE(I130,I132,,I131) -> 12.073% | K135: ריבית שנתית (RATE)
D147: 1

Sheet תרגול עצמי שאלות 6-8
I1: ערך עתידי של סכום סדרתי (FV)
G4: שאלה 6 | I4: בתאריך 1.1.2020 הצבת לעצמך יעד שבסוף השנה יהיה ברשותך 50,000. לכן, הפקדת היום (1.1.2020)
I5: סכום של 12,000 ש"ח בתוכנית חיסכון הנושאת ריבית חודשית של 0.5%. בנוסף, הפקדת בסוף כל חודש 3000
I6: ש"ח למשך שנה. האם עמדת ביעד?
I9: נתונים
I11: 0.5% | J11: r | K11: ריבית חודשית
I12: 50000 | J12: FV | K12: סכום היעד
I13: 12000 | J13: PV | K13: סכום הפקדה חד פעמי
I14: 3000 | J14: PMT | K14: סכום הפקדה חודשי
I15: 12 | J15: n | K15: מספר חודשים
J16: Type | K16: תחילת / סוף חודש
J18: =FV(I11,I15,I14,I13) -> ₪ -49,746.82 | K18: הסכום שיצטבר (FV)
J19: =I12 -> 50000 | K19: סכום היעד
J21: =IF(J18>J19,"YES","NO") -> NO | K21: האם עמדת ביעד?
G31: שאלה 7 | I31: חברת: "מאגדי אופיר השקעות בע"מ", מתלבטת בין 2 חלופות ל-4 שנים:
I32: חלופה א: השקעה היום של 75,000 ש"ח במזגן מיני מרכזי ועלות אחזקה שנתית של 12,500 ש"ח לשנה.
I33: חלופה ב: המשך עבודה עם המזגן הנוכחי שעלות אחזקתו השוטפת השנתית עומדת על 35,000 ש"ח.
I34: הריבית השנתית 4%, מה העלות הכוללת בתום 4 שנים בכל חלופה? ומה תבחר החברה?
I36: נתונים
I37: חלופה 1
I39: 4% | J39: r | K39: ריבית שנתית
I40: -75000 | J40: PV | K40: עלות המזגן | L40: נבחר בחלופה 1
I41: -12500 | J41: PMT | K41: עלות אחזקה שנתית
I42: 4 | J42: n | K42: מספר שנות שימוש
J43: Type | K43: תחילת / סוף חודש
J45: =FV(I39,I42,I41,I40) -> ₪ 140,820.19 | K45: העלות הכוללת בעוד 4 שנים (FV)
I47: חלופה 2
I49: 4% | J49: r | K49: ריבית שנתית
I50: -35000 | J50: PMT | K50: עלות אחזקה שנתית
I51: 4 | J51: n | K51: מספר שנות שימוש
J52: Type | K52: תחילת / סוף שנה
J54: =FV(I49,I51,I50,,) -> ₪ 148,626.24 | K54: העלות הכוללת בעוד 4 שנים (FV)
K57: מהי החלופה העדיפה?
G60: שאלה 8 | I60: אופיר מפקיד בתחילת כל שנה במשך 10 שנים סכום קבוע, כך שלאחר 10 שנים יעמוד לרשותו
I61: סכום של 1 מיליון ש"ח.
I62: הריבית במשק 5% לשנה. מה גובה ההפקדה השנתית?
I69: נתונים
I71: 5.0% | J71: r | K71: ריבית שנתית
I72: 1000000 | J72: FV | K72: סכום היעד
I73: 10 | J73: n | K73: מספר שנים
I74: 1 | J74: Type | K74: תחילת / סוף שנה
J76: =PMT(I71,I73,,I72) -> ₪ -79,504.57 | K76: גובה ההפקדה השנתית (PMT)

Sheet תרגילי בית 9-12
G3: שאלה 9 | I3: ברצונך להגיע לסכום של 50,000 ש"ח בעוד 20 שנה מהיום.
I4: לשם כך, בחרת להשקיע את הסכומים הבאים בתוכנית חיסכון המניבה ריבית חודשית של 0.7%
I5: הפקדה חד פעמית היום בגובה 25,000 ש"ח למשך 20 שנה,
I6: הפקדה סוף חודשית של 50 ש"ח למשך 36 החודשים הראשונים,
I7: במשך ה-60 חודשים הבאים לאחר מכן, לא תפקיד דבר, ולאחר מכן, תחזור להפקיד 50 ש"ח
I8: בסוף כל חודש עד לסוף התקופה. האם הגעת ליעד?
I10: שלב א הפקדה חד פעמית | L10: שלב ב סדרה כחולה | O10: שלב ג סדרה טורקיז
I11: =20*12 -> 240 | J11: n
I12: ? | J12: FV (240) = | L12: 50 | M12: PMT
I13: -₪25,000 | J13: PV | L13: 0.7% | M13: r (month)
I14: 0.7% | J14: r (month) | L14: 36 | M14: n | O14: -50 | P14: PMT
J15: n | L15: =FV(L13,L14,L12,,) -> -₪2,039.05 | M15: FV(36) = | O15: 0.7% | P15: r (month)
L16: =240-36 -> 204 | M16: N | O16: 144 | P16: n
I17: =FV(I14,I11,,I13) -> ₪133,356.12 | J17: FV(240) = | L17: =FV(L13,L16,,L15) -> ₪8,461.35 | M17: FV(240) = | O17: =FV(O15,O16,O14,,) -> ₪12,360.79 | P17: FV(240) =
O20: =SUM(I17,L17,O17) -> ₪154,178.26
G34: שאלה 10 | I34: אופיר מעוניין לצבור סכום של 600,000 ש"ח לטובת רכישת דירה בעיר יבנה
I35: בעוד 5 שנים מהיום, הריבית החודשית: 0.5%.
I36: חשב את גובה ההפקדה החודשית של אופיר בהינתן כי:
I37: א. ההפקדות מבוצעות בסוף כל חודש
I38: ב. ההפקדות מבוצעות בתחילת כל חודש
J42: =12*5 -> 60 | K42: N
J43: 600000 | K43: FV
J44: 0.50% | K44: R
K45: PMT
J47: סעיף א | K47: =PMT(J44,J42,,J43) -> ₪ -8,599.68
J48: סעיף ב | K48: =PMT(J44,J42,,J43,1) -> ₪ -8,556.90
G64: שאלה 11 | I64: מוצעות לך שתי החלופות הבאות, שיעור הריבית השנתית שלך: 2%, מה תעדיף?
I65: חלופה א-תקבולים בגובה 2,000 ש"ח כל שנה למשך 3 שנים, ולאחר מכן, תקבולים
I66: בגובה 2,400 ש"ח בסוף כל שנה למשך 10 שנים.
I67: חלופה ב-קבלת סכום חד-פעמי בעוד 4 שנים מהיום בגובה 30,000 ש"ח.
I70: חלופה א
I71: 1-3 שנים | M71: 4-13 שנים
J73: 2.0% | K73: r(year) | M73: 2.0% | N73: r(year)
J74: 3 | K74: n | M74: 10 | N74: n
J75: ₪ 2,000 | K75: PMT | M75: -₪ 2,400 | N75: PMT
J76: =FV(J73,J74,J75,,) -> -₪6,120.80 | K76: FV(3) =
J77: =FV(J73,10,,J76) -> ₪ 7,461.22 | K77: FV(13) = | M77: =FV(M73,M74,M75,,) -> ₪ 26,279.33 | N77: FV(13) = | O77: =J77+M77 -> ₪ 33,740.55
I80: חלופה ב | J80: -30000 | K80: PV
J81: 2.0% | K81: r(year)
J82: =13-4 -> 9 | K82: n
J83: ₪ 0 | K83: PMT
J84: =FV(J81,J82,J83,J80) -> ₪35,852.78 | K84: FV(13) =
G93: שאלה 12 | I93: גברת שושנה מפקידה בכל סוף חודש סכום של 2,000 ש"ח לטובת ימי הפנסיה הוורודים.
I94: במהלך 15 השנים הראשונות עמדה הריבית בתוכנית החיסכון על 1% לחודש.
I95: במהלך 5 השנים שלאחר מכן, לא הפקידה שושנה דבר, אלא, משכה 500 ש"ח בכל
I96: חודש מהכסף שהצטבר לחשבונה עד כה, הריבית בתקופה זו הייתה 0.5% לחודש.
I97: לאחר 5 שנים אלו, חזרה שושנה להפקיד הפקדות חודשיות בסכום של 2,000 ש"ח
I98: כמה כסף הצטבר בחשבונה של שושנה בתום 30 השנים?
I100: חמש עשרה שנים ראשונות: | M100: חמש השנים הבאות:
I101: שנים | J101: 15 | K101: N | M101: משיכות חודשיות | N101: -500 | O101: PMT
I102: חודשים | J102: =J101*12 -> 180 | K102: n | M102: שנים | N102: 5 | O102: N
I103: ריבית חודשית | J103: 1.00% | K103: r | M103: חודשים | N103: =N102*12 -> 60 | O103: n
J104: 2000 | K104: PMT | M104: ריבית חודשית | N104: 0.50% | O104: r
I105: 0.50% | J105: =FV(J103,J102,J104,,) -> ₪ -999,160.40 | K105: FV 180 | N105: =FV(N104,N103,N101,,) -> ₪ 34,885.02 | O105: FV 240
I106: =360-180 -> 180 | J106: =FV(I105,I106,,J105) -> ₪ 2,452,033.09 | K106: FV 360 | N106: =FV(N104,P106,,N105) -> ₪ -63,469.68 | O106: FV 360 | P106: 120
I109: עשר שנים נוספות:
I110: שנים | J110: 10 | K110: N | N110: =J106+N106+J114 -> ₪ 2,716,322.10
I111: חודשים | J111: =J110*12 -> 120 | K111: n
I112: ריבית חודשית | J112: 0.50% | K112: r
J113: -2000 | K113: PMT
J114: =FV(J112,J111,J113,,) -> ₪ 327,758.69 | K114: FV 360

Sheet תרגול 13-16
G5: שאלה 13 | I5: אופיר מתכנן לטוס לטיול מעגלי באירופה ולכן החליט לחסוך לטיול.
I6: אופיר מתכוון להפקיד 2,400 שקלים וזאת למשך 24 חודשים. והחל מהחודש ה-25 , אופיר יפקיד 1800 שקלים
I7: למשך 36 חודשים.
I8: מה הסכום אשר אופיר יחסוך בתום ה-60 חודשים. באם ידוע כי הריבית החודשית הינה 0.5%?
I10: נתוני השאלה:
J12: משך הפקדות שני | K12: משך הפקדות ראשון
K13: 60 | L13: N
K14: 0.80% | L14: R
L15: PV
J16: 900 | K16: 1200 | L16: PMT
J17: 36 | K17: 24 | L17: חלוקת הזמן
I19: פתרון:
I20: שלב 1- טיפול בהפקדות הראשונות-
I21: נביא לזמן 24:
I22: =-FV(K14,K17,K16) -> ₪ 31,611.79
I23: נביא לזמן 60- משמע ניקח עוד 36 חודשים קדימה:
I24: =FV(K14,J17,,-I22) -> ₪ 42,114.16
I26: שלב 2-טיפול בהפקדות השניות- ניקח 36 חודשי תשלומים קדימה ונגיע לזמן 60
I27: =-FV(K14,J17,J16) -> ₪ 37,375.86
I29: שלב 3- נחבר בין הערכים כאשר הגענו לאותה נקודה
I31: =I27+I24 -> ₪ 79,490.02
G33: שאלה 14 | I33: ליעד החליט לפתוח תוכנית חסכון בה יפקיד בתחילת כל שנה למשך 25
I34: שנים סכום קבוע, כך שלאחר 25 שנים יעמוד לרשותו 1,000,000 ש"ח.
I35: הריבית אשר הוצעה לו מהבנק הינה 5% לשנה.
I36: מהי גובה ההפקדה השנתית אשר יפקיד ליעד כדי להגיע לסכום הדרוש?
J39: נתוני השאלה:
J41: 17% | K41: r
J42: 555,555 | K42: FV
J43: 25 | K43: n
J44: 1 | K44: Type | L44: מדובר עלתחילת תקופה לכן יש חשיבות
J47: פתרון:
J48: =-PMT(J41,J43,,J42,1) -> ₪ 1,625.56 | K48: PMT
G62: שאלה 15 | I62: יהל הציב לעצמו מטרה שבסוף השנה יהיה לו 50,000 ש"ח. לצורך כך, יהל הפקיד היום
I63: סכום של 9,000 ש"ח בתוכנית חיסכון הנושאת ריבית חודשית של 0.4%. בנוסף,
I64: יהל מקבל קצבה חודשית בכל סוף חודש למשך שנה בסכום של 3,000 ש"ח.
I65: האם יהל הגיע ליעדו?
J69: נתוני השאלה:
J70: 19,000 | K70: PV
J71: 100,000 | K71: FV
J72: 6150 | K72: PMT
J73: 0.70% | K73: R
J74: 12 | K74: N
J77: פתרון:
J78: שלב 1- טיפול בערך הנוכחי שקיים היום ולהביאו לזמן 12
J79: =FV(J73,J74,,-J70) -> ₪ 20,658.90
J80: שלב 2- טיפול בסדרת התשלומים ולהביאה לזמן 12
J81: =-FV(J73,J74,J72,,0) -> ₪ 76,708.65
J82: שלב 3- כאשר הגענו לאותה נקודת זמן נחבר בין הסכומים:
J83: =J81+J79 -> ₪ 97,367.56
J85: מסקנה: לא הגענו ליעד - אבל כמעט....
G94: שאלה 16 | I94: בנק הציע לחברת: "מאגדי מרתונים לבחינות" להקים קרן שבתום 12 שנה תוכל לצבור
I95: סכום של של 130,000 ש"ח, אם היא תהיה מוכנה לשלם לבנק סכום של 9,000 ש"ח בתום
I96: כל אחת מה-12 שנים הבאות. מהו שיעור הריבית שמוכן הבנק לשלם לחברה?
J102: נתוני השאלה:
J103: 12 | K103: n
J104: ₪ 260,000.00 | K104: FV
J105: ₪ 18,320.14 | K105: PMT
J108: פתרון:
J109: =RATE(J103,J105,,-J104) -> 3% | K109: RATE
